fUSD/lending_fUSD_20241122
["ID","MTS","AMOUNT","RATE_DAILY","PERIOD"]
[343038703,1732304565894,-14110.054,0.0008019,120]
[343038704,1732304565920,-319970.1622,0.0008019,120]
[343038705,1732304565945,-668.1892,0.0008019,120]
[343038706,1732304565969,-465.8497,0.0008019,120]
[343038707,1732304565993,-383.5355,0.0008019,2]
[343038708,1732304566016,-483.84643727,0.0008019,30]
[343038709,1732304566039,-15014.5084843,0.00080278,9]
[343038710,1732304566066,-15014.5084843,0.00080279,9]
[343038711,1732304566093,-512.46,0.0008028,120]
[343038712,1732304566118,-527.64,0.0008028,120]
[343038713,1732304566145,-500.0,0.0008028,120]
[343038714,1732304566170,-500.0,0.0008028,120]
[343038715,1732304566195,-500.0,0.0008028,120]
[343038716,1732304566219,-248.07,0.0008028,120]
[343038717,1732304566244,-500.0,0.0008028,120]
[343038718,1732304566269,-45043.525453,0.0008028,9]
[343038719,1732304566297,-500.0,0.00080288,120]
[343038720,1732304566322,-500.0,0.00080288,120]
[343038721,1732304566348,-500.0,0.00080288,120]
[343038722,1732304566373,-500.0,0.00080288,120]
[343038723,1732304566398,-151.50537375,0.00080288,120]
[343038724,1732304566421,-500.0,0.00080288,120]
[343038725,1732304566445,-256.89390629,0.00080288,120]
[343038726,1732304566470,-500.0,0.00080288,120]
[343038727,1732304566493,-608.79,0.00080288,120]
[343038728,1732304566516,-325.68,0.00080288,120]
[343038729,1732304566539,-500.0,0.00080288,120]
[343038730,1732304566561,-188.58812201,0.00080288,120]
[343038731,1732304566584,-500.0,0.00080288,120]
[343038732,1732304566607,-500.0,0.00080288,120]
[343038733,1732304566630,-211.91127465,0.00080288,120]
[343038734,1732304566657,-500.0,0.00080288,120]
[343038735,1732304566680,-500.0,0.00080288,120]
[343038736,1732304566704,-391.36,0.00080288,120]
[343038737,1732304566728,-621.97,0.00080288,120]
[343038738,1732304566751,-500.0,0.00080288,120]
[343038739,1732304566774,-500.0,0.00080288,120]
[343038740,1732304566797,-500.0,0.00080288,120]
[343038741,1732304566821,-500.0,0.00080288,120]
[343038742,1732304566842,-500.0,0.00080288,120]
[343038743,1732304566864,-500.0,0.00080288,120]
[343038744,1732304566887,-596.64,0.00080288,60]
[343038745,1732304566911,-500.0,0.00080288,120]
[343038746,1732304566934,-500.0,0.00080288,120]
[343038747,1732304566957,-390.33,0.00080288,120]
[343038748,1732304566980,-500.0,0.00080288,120]
[343038749,1732304567003,-500.0,0.00080288,120]
[343038750,1732304567026,-500.0,0.00080288,120]
[343038751,1732304567049,-500.0,0.00080288,120]
[343038752,1732304567070,-303.3388663,0.00080288,120]
[343038753,1732304567092,-348.74,0.00080288,120]
[343038754,1732304567114,-347.68545725,0.00080288,120]
[343038755,1732304567136,-256.92,0.00080288,120]
[343038756,1732304567159,-500.0,0.00080288,120]
[343038757,1732304567284,-500.0,0.00080288,120]
[343038758,1732304567310,-500.0,0.00080288,120]
[343038759,1732304567336,-500.0,0.00080288,120]
[343038760,1732304567360,-500.0,0.00080288,120]
[343038761,1732304567382,-500.0,0.00080288,120]
[343038762,1732304567412,-500.0,0.00080288,120]
[343038763,1732304567437,-500.0,0.00080288,120]
[343038764,1732304567462,-500.0,0.00080288,120]
[343038765,1732304567484,-344.56416958,0.00080288,120]
[343038766,1732304567505,-500.0,0.00080288,120]
[343038767,1732304567527,-500.0,0.00080288,120]
[343038768,1732304567550,-500.0,0.00080288,120]
[343038769,1732304567572,-535.61,0.00080288,120]
[343038770,1732304567593,-500.0,0.00080288,120]
[343038771,1732304567615,-500.0,0.00080288,120]
[343038772,1732304567637,-500.0,0.00080288,120]
[343038773,1732304567659,-500.0,0.00080288,120]
[343038774,1732304567680,-500.0,0.00080288,120]
[343038775,1732304567703,-500.0,0.00080288,120]
[343038776,1732304567724,-500.0,0.00080288,120]
[343038777,1732304567746,-500.0,0.00080288,120]
[343038778,1732304567769,-500.0,0.00080288,120]
[343038779,1732304567791,-500.0,0.00080288,120]
[343038780,1732304567813,-500.0,0.00080288,120]
[343038781,1732304567835,-500.0,0.00080288,120]
[343038782,1732304567858,-500.0,0.00080288,120]
[343038783,1732304567880,-500.0,0.00080288,120]
[343038784,1732304567904,-500.0,0.00080288,120]
[343038785,1732304567927,-500.0,0.00080288,120]
[343038786,1732304567949,-500.0,0.00080288,120]
[343038787,1732304567971,-500.0,0.00080288,120]
[343038788,1732304567993,-500.0,0.00080288,120]
[343038789,1732304568016,-500.0,0.00080288,120]
[343038790,1732304568038,-500.0,0.00080288,120]
[343038791,1732304568061,-500.0,0.00080288,120]
[343038792,1732304568084,-513.69879596,0.00080288,120]
[343038793,1732304568107,-500.0,0.00080288,120]
[343038794,1732304568130,-500.0,0.00080288,120]
[343038795,1732304568155,-500.0,0.00080288,120]
[343038796,1732304568178,-500.0,0.00080288,120]
[343038797,1732304568200,-500.0,0.00080288,120]
[343038798,1732304568224,-500.0,0.00080288,120]
[343038799,1732304568247,-500.0,0.00080288,120]
[343038800,1732304568270,-500.0,0.00080288,120]
[343038801,1732304568294,-500.0,0.00080288,120]
[343038802,1732304568317,-500.0,0.00080288,120]
[343038803,1732304568341,-500.0,0.00080288,120]
[343038804,1732304568366,-500.0,0.00080288,120]
[343038805,1732304568388,-500.0,0.00080288,120]
[343038806,1732304568413,-601.36,0.00080288,120]
[343038807,1732304568436,-500.0,0.00080288,120]
[343038808,1732304568460,-500.0,0.00080288,120]
[343038809,1732304568482,-157.52190011,0.00080288,120]
[343038810,1732304568504,-500.0,0.00080288,120]
[343038811,1732304568526,-276.35273544,0.00080288,120]
[343038812,1732304568549,-30029.0169686,0.00080289,9]
[343038813,1732304568571,-500.0,0.00080289,120]
[343038814,1732304568593,-500.0,0.00080289,120]
[343038815,1732304568616,-500.0,0.00080289,120]
[343038816,1732304568639,-500.0,0.00080289,120]
[343038817,1732304568664,-500.0,0.00080289,120]
[343038818,1732304568686,-500.0,0.00080289,120]
[343038819,1732304568709,-500.0,0.00080289,120]
[343038820,1732304568732,-500.0,0.00080289,120]
[343038821,1732304568755,-500.0,0.00080289,120]
[343038822,1732304568778,-500.0,0.00080289,120]
[343038823,1732304568800,-211.53850695,0.00080289,120]
[343038824,1732304568825,-500.0,0.00080289,2]
[343038825,1732304568848,-500.0,0.00080289,120]
[343038826,1732304568872,-500.0,0.00080289,120]
[343038827,1732304568894,-500.0,0.00080289,120]
[343038828,1732304568918,-500.0,0.00080289,120]
[343038829,1732304568940,-500.0,0.00080289,120]
[343038830,1732304568962,-500.0,0.00080289,120]
[343038831,1732304568985,-500.0,0.00080289,120]
[343038832,1732304569008,-512.46,0.00080289,120]
[343038833,1732304569029,-512.46,0.00080289,120]
[343038834,1732304569052,-398.28395818,0.00080289,120]
[343038835,1732304569075,-500.0,0.00080289,120]
[343038836,1732304569099,-500.0,0.00080289,120]
[343038837,1732304569123,-500.0,0.00080289,120]
[343038838,1732304569153,-500.0,0.00080289,120]
[343038839,1732304569182,-500.0,0.00080289,120]
[343038840,1732304569207,-467.43,0.00080289,120]
[343038841,1732304569230,-500.0,0.00080289,120]
[343038842,1732304569253,-500.0,0.00080289,120]
[343038843,1732304569277,-174.02457337,0.00080289,120]
[343038844,1732304569304,-409.57631477,0.00080289,120]
[343038845,1732304569328,-500.0,0.00080289,120]
[343038846,1732304569351,-500.0,0.00080289,120]
[343038847,1732304569375,-504.44,0.00080289,120]
[343038848,1732304569400,-500.0,0.00080289,120]
[343038849,1732304569423,-500.0,0.00080289,120]
[343038850,1732304569446,-500.0,0.00080289,120]
[343038851,1732304569469,-500.0,0.00080289,120]
[343038852,1732304569491,-500.0,0.00080289,120]
[343038853,1732304569514,-390.7,0.00080289,120]
[343038854,1732304569537,-242.55,0.00080289,120]
[343038855,1732304569559,-158.65,0.00080289,120]
[343038856,1732304569583,-500.0,0.00080289,120]
[343038857,1732304569604,-500.0,0.00080289,120]
[343038858,1732304569627,-500.0,0.00080289,120]
[343038859,1732304569650,-500.0,0.00080289,120]
[343038860,1732304569675,-500.0,0.00080289,120]
[343038861,1732304569699,-500.0,0.00080289,120]
[343038862,1732304569721,-500.0,0.00080289,120]
[343038863,1732304569743,-500.0,0.00080289,120]
[343038864,1732304569766,-179.69,0.00080289,120]
[343038865,1732304569789,-631.70533344,0.00080289,120]
[343038866,1732304569811,-601.36,0.00080289,120]
[343038867,1732304569833,-163.59,0.00080289,120]
[343038868,1732304569856,-24192.32186346,0.0008029,30]
[343038869,1732304569879,-15014.5084843,0.0008029,9]
[343038870,1732304569905,-165.54090086,0.00080298,15]
[343038871,1732304569926,-500.0,0.00080298,120]
[343038872,1732304569948,-500.0,0.00080298,120]
[343038873,1732304569969,-500.0,0.00080298,120]
[343038874,1732304569992,-500.0,0.00080298,120]
[343038875,1732304570013,-599.94,0.00080298,120]
[343038876,1732304570034,-600.0,0.00080298,120]
[343038877,1732304570056,-500.0,0.00080298,120]
[343038878,1732304570080,-500.0,0.00080298,120]
[343038879,1732304570103,-500.0,0.00080299,120]
[343038880,1732304570125,-500.0,0.00080299,120]
[343038881,1732304570153,-605.5241229,0.00080299,120]
[343038882,1732304570177,-500.0,0.00080299,120]
[343038883,1732304570200,-500.0,0.00080299,120]
[343038884,1732304570224,-500.0,0.00080299,120]
[343038885,1732304570247,-500.0,0.00080299,120]
[343038886,1732304570270,-500.0,0.00080299,120]
[343038887,1732304570298,-500.0,0.00080299,120]
[343038888,1732304570322,-500.0,0.00080299,120]
[343038889,1732304570345,-231.62124612,0.00080299,120]
[343038890,1732304570369,-206.43872185,0.00080299,120]
[343038891,1732304570493,-500.0,0.00080299,120]
[343038892,1732304570517,-500.0,0.00080299,120]
[343038893,1732304570543,-446.74792157,0.00080299,120]
[343038894,1732304570567,-500.0,0.00080299,120]
[343038895,1732304570590,-361.539999,0.00080299,120]
[343038896,1732304570617,-367.89345375,0.00080299,120]
[343038897,1732304570639,-500.0,0.00080299,120]
[343038898,1732304570665,-248.33876368,0.00080299,120]
[343038899,1732304570689,-498.58333498,0.00080299,120]
[343038900,1732304570710,-600.0,0.00080299,120]
[343038901,1732304570732,-500.0,0.00080299,120]
[343038902,1732304570755,-500.0,0.00080299,120]
[343038903,1732304570779,-236.02,0.00080299,120]
[343038904,1732304570802,-500.0,0.00080299,120]
[343038905,1732304570825,-500.0,0.00080299,120]
[343038906,1732304570847,-500.0,0.00080299,120]
[343038907,1732304570870,-500.0,0.00080299,120]
[343038908,1732304570893,-500.0,0.00080299,120]
[343038909,1732304570920,-369.85,0.00080299,120]
[343038910,1732304570944,-500.0,0.00080299,120]
[343038911,1732304570967,-500.0,0.00080299,120]
[343038912,1732304570991,-500.0,0.00080299,120]
[343038913,1732304571015,-500.0,0.00080299,120]
[343038914,1732304571038,-500.0,0.00080299,120]
[343038915,1732304571063,-500.0,0.00080299,120]
[343038916,1732304571086,-262.44078633,0.00080299,120]
[343038917,1732304571110,-500.0,0.00080299,120]
[343038918,1732304571134,-187.19406056,0.00080299,120]
[343038919,1732304571161,-364.11837432,0.00080299,120]
[343038920,1732304571184,-500.0,0.00080299,120]
[343038921,1732304571207,-341.86449024,0.00080299,120]
[343038922,1732304571230,-192.25,0.00080299,120]
[343038923,1732304571253,-500.0,0.00080299,2]
[343038924,1732304571277,-402.87,0.00080299,2]
[343038925,1732304571304,-500.0,0.00080299,120]
[343038926,1732304571327,-412.28,0.00080299,120]
[343038927,1732304571350,-500.0,0.00080299,120]
[343038928,1732304571374,-500.0,0.00080299,120]
[343038929,1732304571395,-500.0,0.00080299,120]
[343038930,1732304571420,-500.0,0.00080299,120]
[343038931,1732304571443,-235.69193989,0.00080299,120]
[343038932,1732304571467,-500.0,0.00080299,120]
[343038933,1732304571489,-500.0,0.00080299,120]
[343038934,1732304571512,-500.0,0.00080299,120]
[343038935,1732304571534,-354.26468998,0.00080299,120]
[343038936,1732304571555,-500.0,0.00080299,120]
[343038937,1732304571577,-500.0,0.00080299,120]
[343038938,1732304571600,-500.0,0.00080299,120]
[343038939,1732304571621,-500.0,0.00080299,120]
[343038940,1732304571643,-500.0,0.00080299,120]
[343038941,1732304571668,-500.0,0.00080299,120]
[343038942,1732304571689,-500.0,0.00080299,120]
[343038943,1732304571711,-500.0,0.00080299,120]
[343038944,1732304571732,-296.40257568,0.00080299,120]
[343038945,1732304571754,-500.0,0.00080299,120]
[343038946,1732304571776,-500.0,0.00080299,120]
[343038947,1732304571798,-500.0,0.00080299,120]
[343038948,1732304571819,-500.0,0.00080299,120]
[343038949,1732304571842,-500.0,0.00080299,120]
[343038950,1732304571866,-500.0,0.00080299,120]
[343038951,1732304571889,-255.0,0.00080299,120]
[343038952,1732304571916,-500.0,0.00080299,120]
[343038953,1732304571946,-454.007695,0.00080299,120]
[343038954,1732304571972,-500.0,0.00080299,120]
[343038955,1732304571999,-500.0,0.00080299,120]
[343038956,1732304572025,-500.0,0.00080299,120]
[343038957,1732304572050,-500.0,0.00080299,120]
[343038958,1732304572074,-339.06,0.00080299,120]
[343038959,1732304572099,-573.38,0.00080299,120]
[343038960,1732304572122,-500.0,0.00080299,120]
[343038961,1732304572144,-500.0,0.00080299,120]
[343038962,1732304572168,-601.36,0.00080299,120]
[343038963,1732304572191,-601.36,0.00080299,120]
[343038964,1732304572213,-1873.24524076,0.000803,120]
[343038965,1732304572237,-164.42520821,0.00080369,65]
[343038966,1732304572261,-15014.5084843,0.00080409,9]
[343038967,1732304572288,-530.50954687,0.00080459,120]
[343038968,1732304572310,-600.0,0.00080459,120]
[343038969,1732304572333,-342.03,0.00080459,120]
[343038970,1732304572355,-500.0,0.00080459,120]
[343038971,1732304572378,-500.0,0.00080459,120]
[343038972,1732304572399,-500.0,0.00080459,120]
[343038973,1732304572423,-500.0,0.00080459,120]
[343038974,1732304572445,-500.0,0.00080459,120]
[343038975,1732304572467,-500.0,0.00080459,120]
[343038976,1732304572489,-500.0,0.00080459,120]
[343038977,1732304572510,-500.0,0.00080459,120]
[343038978,1732304572532,-500.0,0.00080459,120]
[343038979,1732304572554,-500.0,0.00080459,120]
[343038980,1732304572577,-500.0,0.00080459,120]
[343038981,1732304572600,-601.36,0.00080459,120]
[343038982,1732304572623,-500.0,0.00080469,120]
[343038983,1732304572645,-500.0,0.00080469,120]
[343038984,1732304572671,-321.24547996,0.00080593,120]
[343038985,1732304572693,-15014.5084843,0.00080823,9]
[343038986,1732304572716,-500.0,0.00080833,120]
[343038987,1732304572738,-239.61169611,0.00080833,120]
[343038988,1732304572761,-500.0,0.00080833,120]
[343038989,1732304572783,-462.98,0.00080833,120]
[343038990,1732304572806,-500.0,0.00080833,120]
[343038991,1732304572829,-290.18967903,0.00080833,120]
[343038992,1732304572851,-500.0,0.00080833,120]
[343038993,1732304576211,500.0,0.00080288,120]
[343038994,1732304576538,500.0,0.00080289,120]
[343038995,1732304576803,500.0,0.00080299,120]
[343038996,1732304577075,500.0,0.00080299,120]
[343038997,1732304577377,500.0,0.00080459,120]
[343038999,1732304582707,157.24,0.00041096,2]
[343039000,1732304583534,150.0,0.00075621,2]
[343039001,1732304595336,500.0,0.00080288,120]
[343039002,1732304595945,221.93,0.00080289,120]
[343039003,1732304614980,500.0,0.00078079,2]
[343039004,1732304703098,150.0,0.00034548,10]
[343039006,1732304838134,-7319.5351,0.0007998,2]
[343039007,1732304838160,-500.0,0.0008008,120]
[343039008,1732304838185,-500.0,0.00080189,120]
[343039009,1732304838209,-500.0,0.0008028,120]
[343039010,1732304838231,-600.0,0.00080288,120]
[343039011,1732304838256,-500.0,0.00080288,120]
[343039012,1732304838279,-437.82089564,0.00080289,120]
[343039013,1732304838425,-500.0,0.00080289,120]
[343039014,1732304838449,-500.0,0.00080289,120]
[343039015,1732304838472,-500.0,0.00080289,120]
[343039016,1732304838508,-500.0,0.00080299,120]
[343039017,1732304838533,-500.0,0.00080299,120]
[343039018,1732304838559,-528.92056319,0.00080459,120]
[343039019,1732304838582,-1000.0,0.000817,120]
[343039020,1732304838605,-161.33,0.00081704,2]
[343039021,1732304838629,-162.85,0.00081764,2]
[343039022,1732304838651,-500.0,0.00082191,120]
[343039023,1732304838673,-516.51,0.00082417,2]
[343039024,1732304838695,-516.51,0.00082439,2]
[343039025,1732304838716,-516.51,0.00082461,2]
[343039026,1732304838740,-516.51,0.00082482,2]
[343039027,1732304838763,-516.51,0.00082504,2]
[343039028,1732304838785,-516.51,0.00082526,2]
[343039029,1732304838809,-516.51,0.00082547,2]
[343039030,1732304838832,-516.51,0.00082569,2]
[343039031,1732304838855,-516.51,0.00082591,2]
[343039032,1732304838879,-516.51,0.00082612,2]
[343039033,1732304838904,-516.51,0.00082634,2]
[343039034,1732304838926,-2963.07453343,0.00082653,4]
[343039035,1732304839100,-8839.31546657,0.00082653,4]
[343039036,1732304839124,-516.51,0.00082656,2]
[343039037,1732304839150,-516.51,0.00082678,2]
[343039038,1732304839173,-516.51,0.00082699,2]
[343039039,1732304839195,-153.0,0.00082701,120]
[343039040,1732304839223,-516.51,0.00082721,2]
[343039041,1732304839247,-516.51,0.00082743,2]
[343039042,1732304839270,-516.51,0.00082764,2]
[343039043,1732304839294,-516.51,0.00082786,2]
[343039044,1732304839318,-516.51,0.00082808,2]
[343039045,1732304839341,-516.51,0.00082829,2]
[343039046,1732304839369,-161.64,0.00082894,2]
[343039047,1732304839394,-500.0,0.00082987,120]
[343039048,1732304839418,-500.0,0.00082987,120]
[343039049,1732304839440,-637.766065,0.00082987,120]
[343039050,1732304839464,-500.0,0.00082987,120]
[343039051,1732304839487,-500.0,0.00082987,120]
[343039052,1732304839509,-500.0,0.00082987,120]
[343039053,1732304839532,-500.0,0.00082987,120]
[343039054,1732304839554,-500.0,0.00082987,120]
[343039055,1732304839576,-492.75762603,0.00082987,120]
[343039056,1732304839597,-500.0,0.00082987,120]
[343039057,1732304839619,-453.81,0.00082987,120]
[343039058,1732304839643,-601.36,0.00082987,120]
[343039059,1732304839665,-500.0,0.00083424,120]
[343039060,1732304839687,-500.0,0.00083424,120]
[343039061,1732304839708,-500.0,0.00083424,120]
[343039062,1732304839729,-500.0,0.00083424,120]
[343039063,1732304839752,-184.73640974,0.00083424,120]
[343039064,1732304839775,-1500.0,0.000836,120]
[343039065,1732304839800,-1000.0,0.000854,120]
[343039066,1732304839822,-11802.39,0.0008557,4]
[343039067,1732304839843,-1473.0,0.00085601,60]
[343039068,1732304839864,-1500.0,0.000863,120]
[343039069,1732304839887,-157.545,0.0008641,120]
[343039070,1732304839908,-250.0,0.00086448,120]
[343039071,1732304839933,-1024.926,0.00086531,120]
[343039072,1732304839955,-284.86,0.00086621,30]
[343039073,1732304839976,-1000.0,0.00086663,120]
[343039074,1732304839997,-7746.83438488,0.000869,120]
[343039075,1732304840018,-512.46,0.00087494,120]
[343039076,1732304840041,-500.0,0.00087494,120]
[343039077,1732304840064,-185.7,0.00088559,120]
[343039078,1732304840086,-161.64,0.00089039,2]
[343039079,1732304840107,-157.62,0.00089041,120]
[343039080,1732304840131,-3492.35,0.00089074,120]
[343039081,1732304840153,-207.0,0.00089228,120]
[343039082,1732304840175,-190.0,0.00089263,120]
[343039083,1732304840201,-150.0,0.00089308,120]
[343039084,1732304840223,-2876.71,0.00089516,120]
[343039085,1732304840246,-183.75,0.0008967,120]
[343039086,1732304840268,-305.0,0.00089671,120]
[343039087,1732304840290,-164.99,0.00089698,120]
[343039088,1732304840312,-4674.16,0.0008978,120]
[343039089,1732304840334,-150.0,0.00089925,120]
[343039090,1732304840357,-165.54090086,0.00089935,15]
[343039091,1732304840384,-2485.39220118,0.00089935,15]
[343039092,1732304840408,-8007.78556564,0.0009,120]
[343039093,1732304840431,-200.0,0.0009,120]
[343039094,1732304840454,-42829.0,0.0009,120]
[343039095,1732304840482,-23243.1627333,0.0009,120]
[343039096,1732304840505,-189.63486623,0.00090035,120]
[343039097,1732304840527,-189.6348662,0.00090338,120]
[343039098,1732304840549,-189.6348662,0.00090641,120]
[343039099,1732304840571,-189.6348662,0.00090944,120]
[343039100,1732304840593,-2485.39220111,0.00091042,15]
[343039101,1732304840615,-189.6348662,0.00091246,120]
[343039102,1732304840639,-500.0,0.000913,120]
[343039103,1732304840659,-207.01951094,0.00091399,62]
[343039104,1732304840683,-214892.42587561,0.00091431,120]
[343039105,1732304841155,-41741.88090766,0.00091431,120]
[343039106,1732304850103,-25582.15159141,0.00091431,120]
[343039107,1732304853091,-150748.73812532,0.00091431,120]
[343039108,1732304853113,-5942.0,0.00091531,120]
[343039109,1732304853135,-189.6348662,0.00091549,120]
[343039110,1732304853159,-165.54090086,0.00091596,15]
[343039111,1732304853180,-1169.119,0.00091653,120]
[343039112,1732304853201,-564.0,0.00091653,120]
[343039113,1732304853223,-13661.0,0.00091653,120]
[343039114,1732304853245,-1995.0,0.00091653,120]
[343039115,1732304853266,-189.6348662,0.00091852,120]
[343039116,1732304853287,-3000.0,0.00092,120]
[343039117,1732304853310,-2485.39220111,0.00092149,15]
[343039118,1732304853332,-189.6348662,0.00092155,120]
[343039119,1732304853354,-3000.0,0.00092286,120]
[343039120,1732304853379,-189.6348662,0.00092458,120]
[343039121,1732304853402,-299.9527354,0.00092512,120]
[343039122,1732304853426,-3000.0,0.00092571,120]
[343039123,1732304853449,-189.6348662,0.00092761,120]
[343039124,1732304853471,-3000.0,0.00092857,120]
[343039125,1732304853599,-500.0,0.000929,120]
[343039126,1732304853626,-1250.0,0.000929,120]
[343039127,1732304853650,-20000.0,0.00093,120]
[343039128,1732304853670,-176.4944409,0.00093,120]
[343039129,1732304853692,-32741.93299151,0.00093043,30]
[343039156,1732305031505,-500.0,0.00079452,120]
[343039157,1732305031516,-500.0,0.00079452,120]
[343039158,1732305031525,-500.0,0.00079489,120]
[343039159,1732305031537,-500.0,0.00079489,120]
[343039160,1732305031547,-500.0,0.00079999,120]
[343039161,1732305031557,-500.0,0.00079999,120]
[343039162,1732305031566,-500.0,0.00079999,120]
[343039163,1732305031575,-500.0,0.00079999,120]
[343039164,1732305031585,-500.0,0.0008008,120]
[343039165,1732305031594,-500.0,0.0008008,120]
[343039166,1732305031603,-500.0,0.0008008,120]
[343039167,1732305031612,-500.0,0.0008008,120]
[343039168,1732305031622,-500.0,0.0008008,120]
[343039169,1732305031631,-500.0,0.0008008,120]
[343039170,1732305031641,-500.0,0.0008008,120]
[343039171,1732305031650,-500.0,0.0008008,120]
[343039172,1732305031660,-500.0,0.0008008,120]
[343039173,1732305031670,-500.0,0.0008008,120]
[343039174,1732305031680,-500.0,0.0008008,120]
[343039175,1732305031690,-500.0,0.0008018,120]
[343039176,1732305031699,-375.63,0.0008018,120]
[343039177,1732305031709,-500.0,0.0008018,120]
[343039178,1732305031718,-500.0,0.00080189,120]
[343039179,1732305031728,-500.0,0.00080189,120]
[343039180,1732305031738,-500.0,0.00080189,120]
[343039181,1732305031748,-500.0,0.00080189,120]
[343039182,1732305031759,-500.0,0.00080189,120]
[343039183,1732305031768,-247.52,0.00080189,120]
[343039184,1732305031779,-500.0,0.00080189,120]
[343039185,1732305031789,-500.0,0.00080189,120]
[343039186,1732305031799,-500.0,0.00080189,120]
[343039187,1732305031810,-500.0,0.00080189,120]
[343039188,1732305031820,-500.0,0.00080189,120]
[343039189,1732305031830,-500.0,0.00080189,120]
[343039191,1732305031845,-500.0,0.00080189,120]
[343039193,1732305031855,-500.0,0.0008028,120]
[343039194,1732305031864,-500.0,0.0008028,120]
[343039195,1732305031874,-521.86828263,0.0008028,120]
[343039196,1732305031883,-500.0,0.0008028,120]
[343039197,1732305031892,-500.0,0.0008028,120]
[343039209,1732305032026,-500.0,0.0008028,120]
[343039211,1732305032039,-500.0,0.0008028,120]
[343039213,1732305032048,-500.0,0.0008028,120]
[343039215,1732305032058,-500.0,0.0008028,120]
[343039217,1732305032067,-500.0,0.0008028,120]
[343039219,1732305032077,-150.0,0.00080288,120]
[343039221,1732305032086,-500.0,0.00080288,120]
[343039223,1732305032096,-500.0,0.00080288,120]
[343039225,1732305032106,-361.47758429,0.00080288,120]
[343039227,1732305032115,-500.0,0.00080288,120]
[343039229,1732305032125,-500.0,0.00080288,120]
[343039230,1732305032134,-500.0,0.00080288,120]
[343039231,1732305032144,-500.0,0.00080288,120]
[343039232,1732305032154,-500.0,0.00080288,120]
[343039233,1732305032163,-500.0,0.00080288,120]
[343039234,1732305032173,-500.0,0.00080288,120]
[343039235,1732305032182,-500.0,0.00080288,120]
[343039236,1732305032192,-500.0,0.00080288,120]
[343039237,1732305032201,-500.0,0.00080288,120]
[343039238,1732305032210,-500.0,0.00080288,120]
[343039239,1732305032220,-500.0,0.00080288,120]
[343039240,1732305032230,-500.0,0.00080288,120]
[343039241,1732305032239,-500.0,0.00080289,120]
[343039242,1732305032249,-500.0,0.00080289,120]
[343039243,1732305032258,-500.0,0.00080289,120]
[343039244,1732305032268,-150.0,0.00080289,120]
[343039245,1732305032277,-500.0,0.00080289,120]
[343039246,1732305032287,-500.0,0.00080289,120]
[343039247,1732305032297,-500.0,0.00080289,120]
[343039248,1732305032307,-500.0,0.00080289,120]
[343039249,1732305032316,-500.0,0.00080289,120]
[343039250,1732305032326,-547.40389901,0.00080289,120]
[343039251,1732305032336,-500.0,0.00080289,120]
[343039252,1732305032346,-500.0,0.00080289,120]
[343039253,1732305032356,-500.0,0.00080289,120]